[Event "36th German Seniors-ch-65 2024"]
[Site "Bad Wildungen"]
[Date "2024.08.25"]
[Round "1.1"]
[White "Chevelevitch, Evgueni"]
[Black "Mueller, Lutz"]
[Result "1-0"]
[ECO "B08"]
[WhiteElo "2334"]
[BlackElo "1925"]
[Annotator "RC"]
[PlyCount "79"]
[EventDate "2024.08.22"]
[EventType "swiss"]
[EventCountry "GER"]
[SourceTitle "playchess.com"]
[Source "ChessBase"]
[SourceQuality "1"]
[TimeControl "40/5400+30:1800+30"]

1. e4 {[%emt 0:00:02]} g6 {[%emt 0:00:35]} 2. d4 {[%emt 0:00:17]} Bg7 {[%emt 0:00:28]} 3. Nf3 {[%emt 0:00:11]} d6 {[%emt 0:01:18]} 4. Nc3 {[%emt 0:00:21]} Nc6 {[%emt 0:00:32]} 5. d5 {[%emt 0:01:41]} Nb8 {[%emt 0:00:03]} 6. Be2 {[%emt 0:03:20]} Nf6 {[%emt 0:00:12]} 7. O-O {[%emt 0:01:20]} O-O {[%emt 0:00:10]} 8. Bg5 {[%emt 0:02:40]} c5 {[%emt 0:01:36]} 9. Qd2 {[%emt 0:02:06]} Re8 {[%emt 0:01:49]} 10. Rfe1 {[%emt 0:02:24]} Na6 {[%emt 0:00:21]} 11. h3 {[%emt 0:09:37]} Nd7 {[%emt 0:02:51]} 12. Bf1 {[%emt 0:02:47]} Rb8 {[%emt 0:01:17]} 13. a4 {[%emt 0:05:11]} f6 {[%emt 0:01:20]} 14. Be3 {[%emt 0:01:15]} Nc7 {[%emt 0:01:45]} 15. Qd1 {[%emt 0:13:11]} b6 {[%emt 0:03:45]} 16. Nd2 {[%emt 0:04:21]} Ne5 {[%emt 0:04:13]} 17. f4 {[%emt 0:01:00]} Nf7 {[%emt 0:00:03]} 18. Nb5 {[%emt 0:11:15]} Ra8 {[%emt 0:08:23]} 19. Nc4 {[%emt 0:05:21]} Bd7 {[%emt 0:01:30]} 20. Nc3 {[%emt 0:00:26]} Qb8 {[%emt 0:04:06]} 21. Qd2 {[%emt 0:00:29]} Qc8 {[%emt 0:16:49]} 22. Bf2 {[%emt 0:00:51]} Rd8 {[%emt 0:01:45]} 23. Bg3 {[%emt 0:03:11]} e5 {[%emt 0:03:37]} 24. dxe6 {[%emt 0:04:09]} Nxe6 {[%emt 0:02:49]} 25. Nd5 {[%emt 0:00:39]} Qb7 {[%emt 0:01:49]} 26. c3 {[%emt 0:04:30]} Bc6 {[%emt 0:01:24]} 27. Nce3 {[%emt 0:00:09]} h5 {[%emt 0:02:26]} 28. Bc4 {[%emt 0:00:24]} Re8 {[%emt 0:00:25]} 29. h4 {[%emt 0:04:08]} Rad8 {[%emt 0:01:41]} 30. f5 {[%emt 0:02:03]} Nf8 {[%emt 0:01:02]} 31. fxg6 {[%emt 0:03:27]} Nxg6 {[%emt 0:00:19]} 32. Nf5 {[%emt 0:00:10]} Nge5 {[%emt 0:01:55]} 33. Be2 {[%emt 0:01:57]} Ng4 {[%emt 0:00:21]} 34. Bxg4 {[%emt 0:01:10]} hxg4 {[%emt 0:00:22]} 35. c4 {[%emt 0:00:31]} Kh7 {[%emt 0:04:04]} 36. Qe2 {[%emt 0:02:19]} Bxd5 {[%emt 0:02:15]} 37. cxd5 {[%emt 0:00:02]} Ne5 {[%emt 0:02:08]} 38. Bxe5 {[%emt 0:00:30]} fxe5 {[%emt 0:02:08]} 39. Qxg4 {[%emt 0:00:14]} Qf7 {[%emt 0:01:02]} 40. Rf1 {[%emt 0:10:51]} 1-0

[Event "36th German Seniors-ch-65 2024"]
[Site "Bad Wildungen"]
[Date "2024.08.25"]
[Round "1.2"]
[White "Pekrul, Juergen"]
[Black "Brueggemann, Joachim"]
[Result "1/2-1/2"]
[ECO "D34"]
[WhiteElo "1916"]
[BlackElo "2267"]
[Annotator "RC"]
[PlyCount "72"]
[EventDate "2024.08.22"]
[EventType "swiss"]
[EventCountry "GER"]
[SourceTitle "playchess.com"]
[Source "ChessBase"]
[SourceQuality "1"]
[TimeControl "40/5400+30:1800+30"]

1. Nf3 {[%emt 0:00:04]} Nf6 {[%emt 0:00:05]} 2. d4 {[%emt 0:00:11]} e6 {[%emt 0:00:06]} 3. g3 {[%emt 0:00:10]} c5 {[%emt 0:00:43]} 4. Bg2 {[%emt 0:00:53]} Nc6 {[%emt 0:00:38]} 5. O-O {[%emt 0:00:54]} d5 {[%emt 0:00:14]} 6. c4 {[%emt 0:02:44]} Be7 {[%emt 0:00:18]} 7. cxd5 {[%emt 0:00:17]} exd5 {[%emt 0:00:07]} 8. Nc3 {[%emt 0:02:02]} O-O {[%emt 0:00:09]} 9. Bg5 {[%emt 0:01:14]} c4 {[%emt 0:00:06]} 10. Ne5 {[%emt 0:09:20]} Be6 {[%emt 0:00:07]} 11. Nxc6 {[%emt 0:02:56]} bxc6 {[%emt 0:00:06]} 12. b3 {[%emt 0:00:08]} Qa5 {[%emt 0:00:32]} 13. Qc2 {[%emt 0:00:53]} Rac8 {[%emt 0:05:52]} 14. Bd2 {[%emt 0:04:38]} cxb3 {[%emt 0:09:14]} 15. axb3 {[%emt 0:01:00]} Qb6 {[%emt 0:00:55]} 16. e3 {[%emt 0:00:55]} c5 {[%emt 0:07:10]} 17. Na4 {[%emt 0:02:57]} Qb5 {[%emt 0:04:23]} 18. dxc5 {[%emt 0:06:19]} Bxc5 {[%emt 0:03:06]} 19. Nxc5 {[%emt 0:00:40]} Rxc5 {[%emt 0:00:06]} 20. Qb2 {[%emt 0:02:51]} Ne4 {[%emt 0:07:12]} 21. Ra5 {[%emt 0:05:23]} Qb6 {[%emt 0:09:09]} 22. Rxc5 {[%emt 0:00:42]} Nxc5 {[%emt 0:03:02]} 23. Bc3 {[%emt 0:03:31]} Qxb3 {[%emt 0:02:59]} 24. Bxg7 {[%emt 0:00:05]} Qxb2 {[%emt 0:00:11]} 25. Bxb2 {[%emt 0:00:15]} Nb3 {[%emt 0:02:06]} 26. Rd1 {[%emt 0:01:36]} Rd8 {[%emt 0:01:17]} 27. Bf6 {[%emt 0:04:10]} Rd7 {[%emt 0:00:10]} 28. Rb1 {[%emt 0:01:19]} Rb7 {[%emt 0:00:35]} 29. Rd1 {[%emt 0:09:26]} Rb6 {[%emt 0:06:31]} 30. Bd8 {[%emt 0:05:44]} Rd6 {[%emt 0:01:28]} 31. Be7 {[%emt 0:02:39]} Rd7 {[%emt 0:00:14]} 32. Bf6 {[%emt 0:00:03]} a5 {[%emt 0:00:29]} 33. Bf1 {[%emt 0:00:24]} Rb7 {[%emt 0:09:40]} 34. Bc4 {[%emt 0:06:04]} Rb6 {[%emt 0:12:01]} 35. Bd8 {[%emt 0:10:33]} dxc4 {[%emt 0:03:38]} 36. Bxb6 {[%emt 0:00:02]} c3 {[%emt 0:00:17]} 1/2-1/2

[Event "36th German Seniors-ch-65 2024"]
[Site "Bad Wildungen"]
[Date "2024.08.25"]
[Round "1.3"]
[White "Klundt, Klaus"]
[Black "Juenger, Leonhard"]
[Result "1-0"]
[ECO "B33"]
[WhiteElo "2264"]
[BlackElo "1912"]
[Annotator "RC"]
[PlyCount "71"]
[EventDate "2024.08.22"]
[EventType "swiss"]
[EventCountry "GER"]
[SourceTitle "playchess.com"]
[Source "ChessBase"]
[SourceQuality "1"]
[TimeControl "40/5400+30:1800+30"]

1. e4 {[%emt 0:00:02]} c5 {[%emt 0:00:32]} 2. Nf3 {[%emt 0:00:10]} e6 {[%emt 0:00:14]} 3. d4 {[%emt 0:00:15]} cxd4 {[%emt 0:00:15]} 4. Nxd4 {[%emt 0:00:02]} Nf6 {[%emt 0:00:28]} 5. Nc3 {[%emt 0:00:24]} Nc6 {[%emt 0:00:17]} 6. Ndb5 {[%emt 0:00:25]} d6 {[%emt 0:08:16]} 7. Bf4 {[%emt 0:00:40]} e5 {[%emt 0:02:46]} 8. Bg5 {[%emt 0:00:06]} a6 {[%emt 0:00:21]} 9. Na3 {[%emt 0:00:19]} b5 {[%emt 0:02:06]} 10. Nd5 {[%emt 0:00:37]} Be7 {[%emt 0:01:12]} 11. Bxf6 {[%emt 0:00:14]} Bxf6 {[%emt 0:04:19]} 12. c4 {[%emt 0:00:15]} b4 {[%emt 0:05:17]} 13. Nc2 {[%emt 0:06:41]} Bg5 {[%emt 0:03:38]} 14. g3 {[%emt 0:00:47]} O-O {[%emt 0:03:19]} 15. h4 {[%emt 0:00:31]} Bh6 {[%emt 0:02:57]} 16. Bh3 {[%emt 0:01:14]} Be6 {[%emt 0:06:41]} 17. Kf1 {[%emt 0:00:38]} Rb8 {[%emt 0:07:00]} 18. Kg2 {[%emt 0:00:49]} a5 {[%emt 0:04:21]} 19. b3 {[%emt 0:00:55]} Qd7 {[%emt 0:04:20]} 20. Qd3 {[%emt 0:04:50]} f6 {[%emt 0:06:44]} 21. Rad1 {[%emt 0:03:08]} Bxh3+ {[%emt 0:09:20]} 22. Rxh3 {[%emt 0:00:11]} Rbd8 {[%emt 0:02:30]} 23. Rhh1 {[%emt 0:13:55]} Kh8 {[%emt 0:02:02]} 24. f3 {[%emt 0:01:20]} g6 {[%emt 0:04:03]} 25. Qe2 {[%emt 0:01:30]} Qg7 {[%emt 0:03:10]} 26. h5 {[%emt 0:02:22]} f5 {[%emt 0:01:04]} 27. hxg6 {[%emt 0:00:36]} Qxg6 {[%emt 0:00:18]} 28. Rh3 {[%emt 0:02:19]} Rf7 {[%emt 0:05:53]} 29. Rdh1 {[%emt 0:01:48]} Bf4 {[%emt 0:02:02]} 30. exf5 {[%emt 0:03:24]} Qg5 {[%emt 0:02:00]} 31. Qe4 {[%emt 0:04:48]} Bxg3 {[%emt 0:05:07]} 32. Rxg3 {[%emt 0:00:32]} Qd2+ {[%emt 0:00:17]} 33. Kf1 {[%emt 0:01:59]} Qd1+ {[%emt 0:01:30]} 34. Ne1 {[%emt 0:00:21]} Nd4 {[%emt 0:00:36]} 35. f6 {[%emt 0:00:45]} Rdf8 {[%emt 0:01:55]} 36. Rg7 {[%emt 0:01:20]} 1-0

[Event "36th German Seniors-ch-65 2024"]
[Site "Bad Wildungen"]
[Date "2024.08.25"]
[Round "1.4"]
[White "Powalla, Klaus"]
[Black "Juhnke, Juergen"]
[Result "0-1"]
[ECO "B20"]
[WhiteElo "1912"]
[BlackElo "2259"]
[Annotator "RC"]
[PlyCount "81"]
[EventDate "2024.08.22"]
[EventType "swiss"]
[EventCountry "GER"]
[SourceTitle "playchess.com"]
[Source "ChessBase"]
[SourceQuality "1"]
[TimeControl "40/5400+30:1800+30"]

1. e4 {[%emt 1:31:00]} c5 {[%emt 1:31:00]} 2. Bc4 {[%emt 0:00:00]} Nc6 {[%emt 0:00:00]} 3. a3 {[%emt 0:00:00]} Nf6 {[%emt 0:00:00]} 4. Nc3 {[%emt 0:00:00]} e6 {[%emt 0:00:00]} 5. d3 {[%emt 0:00:00]} Be7 {[%emt 0:00:00]} 6. Nf3 {[%emt 0:00:00]} d5 {[%emt 0:00:00]} 7. exd5 {[%emt 0:00:00]} exd5 {[%emt 0:00:00]} 8. Ba2 {[%emt 0:00:00]} O-O {[%emt 0:00:00]} 9. h3 {[%emt 0:00:00]} b5 {[%emt 0:00:00]} 10. O-O {[%emt 0:00:00]} b4 {[%emt 0:00:00]} 11. Ne2 {[%emt 0:00:00]} a5 {[%emt 0:00:00]} 12. c3 {[%emt 0:00:00]} Ba6 {[%emt 0:00:00]} 13. Re1 {[%emt 0:00:00]} Re8 {[%emt 0:00:00]} 14. Bf4 {[%emt 0:00:00]} h6 {[%emt 0:00:00]} 15. Qd2 {[%emt 0:00:00]} a4 {[%emt 0:00:00]} 16. cxb4 {[%emt 0:00:00]} cxb4 {[%emt 0:00:00]} 17. Rac1 {[%emt 0:00:00]} Rc8 {[%emt 0:00:00]} 18. Ned4 {[%emt 0:00:00]} Nxd4 {[%emt 0:00:00]} 19. Nxd4 {[%emt 0:00:00]} Bc5 {[%emt 0:00:00]} 20. Nf5 {[%emt 0:00:00]} bxa3 {[%emt 0:00:00]} 21. d4 {[%emt 0:00:00]} Bf8 {[%emt 0:00:00]} 22. bxa3 {[%emt 0:00:00]} Ne4 {[%emt 0:00:00]} 23. Qe3 {[%emt 0:00:00]} Qf6 {[%emt 0:00:00]} 24. Rxc8 {[%emt 0:00:00]} Bxc8 {[%emt 0:00:00]} 25. Ng3 {[%emt 0:00:00]} Bb7 {[%emt 0:00:00]} 26. Be5 {[%emt 0:00:00]} Qe7 {[%emt 0:00:00]} 27. Nxe4 {[%emt 0:00:00]} dxe4 {[%emt 0:00:00]} 28. Rb1 {[%emt 0:00:00]} Kh7 {[%emt 0:00:00]} 29. Qf4 {[%emt 0:00:00]} f6 {[%emt 0:00:28]} 30. Qf5+ {[%emt 0:00:00]} Kh8 {[%emt 0:00:11]} 31. Bf4 {[%emt 0:00:00]} Rd8 {[%emt 0:01:47]} 32. d5 {[%emt 0:00:00]} Bc8 {[%emt 0:00:32]} 33. Qh5 {[%emt 0:00:00]} Qxa3 {[%emt 0:00:39]} 34. Bc4 {[%emt 0:00:56]} Qc3 {[%emt 0:02:58]} 35. Rc1 {[%emt 0:00:31]} Qb2 {[%emt 0:02:30]} 36. Qf7 {[%emt 0:00:24]} Bc5 {[%emt 0:01:43]} 37. Rf1 {[%emt 0:01:01]} Qd4 {[%emt 0:04:40]} 38. Bxh6 {[%emt 0:00:48]} gxh6 {[%emt 0:00:12]} 39. Qg6 {[%emt 0:00:49]} Bf8 {[%emt 0:00:49]} 40. Rc1 {[%emt 0:00:35]} Bg7 {[%emt 0:00:33]} 41. d6 {[%emt 0:44:56]} 0-1

[Event "36th German Seniors-ch-65 2024"]
[Site "Bad Wildungen"]
[Date "2024.08.25"]
[Round "1.5"]
[White "Nehmert, Ulrich"]
[Black "Duerer, Manfred"]
[Result "1-0"]
[ECO "A80"]
[WhiteElo "2255"]
[BlackElo "1911"]
[Annotator "RC"]
[PlyCount "120"]
[EventDate "2024.08.22"]
[EventType "swiss"]
[EventCountry "GER"]
[SourceTitle "playchess.com"]
[Source "ChessBase"]
[SourceQuality "1"]
[TimeControl "40/5400+30:1800+30"]

1. d4 {[%emt 0:00:03]} f5 {[%emt 0:03:24]} 2. Nf3 {[%emt 0:03:08]} Nf6 {[%emt 0:01:19]} 3. Bf4 {[%emt 0:00:18]} e6 {[%emt 0:01:16]} 4. h4 {[%emt 0:00:56]} b6 {[%emt 0:03:55]} 5. e3 {[%emt 0:04:19]} Bb7 {[%emt 0:00:36]} 6. Nbd2 {[%emt 0:00:26]} Be7 {[%emt 0:04:41]} 7. Bd3 {[%emt 0:05:00]} O-O {[%emt 0:01:48]} 8. c3 {[%emt 0:01:45]} Nc6 {[%emt 0:06:49]} 9. Qe2 {[%emt 0:04:21]} Rc8 {[%emt 0:08:54]} 10. e4 {[%emt 0:07:23]} fxe4 {[%emt 0:06:17]} 11. Nxe4 {[%emt 0:00:59]} Qe8 {[%emt 0:00:44]} 12. Bg3 {[%emt 0:06:47]} Nd8 {[%emt 0:00:41]} 13. O-O-O {[%emt 0:01:36]} Nxe4 {[%emt 0:12:55]} 14. Bxe4 {[%emt 0:02:10]} Qh5 {[%emt 0:05:57]} 15. Rhe1 {[%emt 0:01:55]} Bxe4 {[%emt 0:01:47]} 16. Qxe4 {[%emt 0:00:12]} Nc6 {[%emt 0:00:03]} 17. d5 {[%emt 0:06:54]} exd5 {[%emt 0:00:45]} 18. Rxd5 {[%emt 0:00:22]} Qh6+ {[%emt 0:03:03]} 19. Kb1 {[%emt 0:00:20]} Bd6 {[%emt 0:06:52]} 20. Bxd6 {[%emt 0:02:06]} cxd6 {[%emt 0:00:02]} 21. Qg4 {[%emt 0:00:03]} Rcd8 {[%emt 0:05:21]} 22. Qg5 {[%emt 0:01:25]} Qxg5 {[%emt 0:03:21]} 23. hxg5 {[%emt 0:00:12]} Ne5 {[%emt 0:00:10]} 24. Re3 {[%emt 0:02:54]} Ng4 {[%emt 0:01:52]} 25. Re2 {[%emt 0:00:39]} Ne5 {[%emt 0:00:03]} 26. Nd2 {[%emt 0:01:27]} Rfe8 {[%emt 0:07:27]} 27. Rxd6 {[%emt 0:01:36]} Kf8 {[%emt 0:00:12]} 28. f4 {[%emt 0:01:35]} Nf7 {[%emt 0:00:23]} 29. Rxe8+ {[%emt 0:00:23]} Kxe8 {[%emt 0:00:02]} 30. Rd5 {[%emt 0:00:45]} Ke7 {[%emt 0:01:25]} 31. Nf3 {[%emt 0:01:05]} Ke6 {[%emt 0:00:45]} 32. c4 {[%emt 0:00:52]} g6 {[%emt 0:04:19]} 33. Kc2 {[%emt 0:01:08]} Nd6 {[%emt 0:01:48]} 34. Nd4+ {[%emt 0:02:17]} Ke7 {[%emt 0:00:03]} 35. Re5+ {[%emt 0:00:20]} Kf8 {[%emt 0:00:36]} 36. Kd3 {[%emt 0:02:30]} Nf7 {[%emt 0:01:04]} 37. Rd5 {[%emt 0:01:37]} Ke7 {[%emt 0:01:20]} 38. b4 {[%emt 0:02:58]} Rc8 {[%emt 0:00:43]} 39. g4 {[%emt 0:07:16]} Rb8 {[%emt 0:03:00]} 40. f5 {[%emt 0:04:57]} gxf5 {[%emt 0:00:40]} 41. Nxf5+ {[%emt 0:31:12]} Ke6 {[%emt 0:31:07]} 42. Ng7+ {[%emt 0:08:38]} Ke7 {[%emt 0:00:03]} 43. Nh5 {[%emt 0:00:18]} d6 {[%emt 0:01:23]} 44. Ng3 {[%emt 0:02:34]} Rg8 {[%emt 0:01:29]} 45. Ne4 {[%emt 0:01:05]} Ke6 {[%emt 0:00:12]} 46. Kd4 {[%emt 0:00:37]} Rg6 {[%emt 0:00:00]} 47. a4 {[%emt 0:00:00]} Ke7 {[%emt 0:00:00]} 48. a5 {[%emt 0:00:00]} Kd8 {[%emt 0:00:00]} 49. Rf5 {[%emt 0:00:00]} Rg7 {[%emt 0:00:00]} 50. a6 {[%emt 0:00:00]} Kd7 {[%emt 0:00:00]} 51. Nf6+ {[%emt 0:00:00]} Ke7 {[%emt 0:00:00]} 52. Nxh7 {[%emt 0:00:00]} Ne5 {[%emt 0:00:00]} 53. Nf6 {[%emt 0:00:00]} Nc6+ {[%emt 0:00:00]} 54. Kc3 {[%emt 0:00:00]} Ne5 {[%emt 0:00:00]} 55. b5 {[%emt 0:00:00]} Nf7 {[%emt 0:00:00]} 56. Nd5+ {[%emt 0:00:00]} Kd8 {[%emt 0:00:00]} 57. Nxb6 {[%emt 0:00:00]} Nxg5 {[%emt 0:00:00]} 58. Nd5 {[%emt 0:00:00]} Ne6 {[%emt 0:00:00]} 59. Nf4 {[%emt 0:00:00]} Nc5 {[%emt 0:00:00]} 60. Rxc5 {[%emt 0:00:00]} Ke8 {[%emt 0:00:00]} 1-0

[Event "36th German Seniors-ch-65 2024"]
[Site "Bad Wildungen"]
[Date "2024.08.25"]
[Round "1.6"]
[White "Reimer, Otto"]
[Black "Rosen, Bernd"]
[Result "0-1"]
[ECO "C02"]
[WhiteElo "1911"]
[BlackElo "2245"]
[Annotator "RC"]
[PlyCount "80"]
[EventDate "2024.08.22"]
[EventType "swiss"]
[EventCountry "GER"]
[SourceTitle "playchess.com"]
[Source "ChessBase"]
[SourceQuality "1"]
[TimeControl "40/5400+30:1800+30"]

1. e4 {[%emt 0:01:26]} e6 {[%emt 0:00:04]} 2. d4 {[%emt 0:00:22]} d5 {[%emt 0:00:07]} 3. e5 {[%emt 0:00:29]} c5 {[%emt 0:00:07]} 4. c3 {[%emt 0:00:09]} Qb6 {[%emt 0:00:10]} 5. Nf3 {[%emt 0:01:03]} Nc6 {[%emt 0:00:06]} 6. a3 {[%emt 0:03:31]} Nh6 {[%emt 0:00:16]} 7. Bd3 {[%emt 0:01:03]} cxd4 {[%emt 0:03:36]} 8. cxd4 {[%emt 0:00:37]} Bd7 {[%emt 0:00:07]} 9. Bc2 {[%emt 0:02:10]} Nf5 {[%emt 0:00:44]} 10. Bxf5 {[%emt 0:00:54]} exf5 {[%emt 0:00:05]} 11. O-O {[%emt 0:00:34]} h6 {[%emt 0:01:23]} 12. Nc3 {[%emt 0:02:30]} Be6 {[%emt 0:00:05]} 13. b4 {[%emt 0:07:09]} Rc8 {[%emt 0:07:42]} 14. Na4 {[%emt 0:02:54]} Qc7 {[%emt 0:01:24]} 15. Nc5 {[%emt 0:01:23]} Be7 {[%emt 0:01:03]} 16. g3 {[%emt 0:08:21]} O-O {[%emt 0:02:24]} 17. h4 {[%emt 0:03:23]} b6 {[%emt 0:03:39]} 18. Nxe6 {[%emt 0:02:41]} fxe6 {[%emt 0:00:05]} 19. Be3 {[%emt 0:03:02]} b5 {[%emt 0:03:34]} 20. Qd3 {[%emt 0:06:10]} Qb6 {[%emt 0:00:22]} 21. h5 {[%emt 0:05:13]} a5 {[%emt 0:02:31]} 22. bxa5 {[%emt 0:04:31]} Nxa5 {[%emt 0:03:21]} 23. Bd2 {[%emt 0:00:45]} Rc4 {[%emt 0:09:30]} 24. Rfb1 {[%emt 0:08:43]} Rfc8 {[%emt 0:10:09]} 25. Bb4 {[%emt 0:03:19]} Bxb4 {[%emt 0:01:53]} 26. Rxb4 {[%emt 0:01:03]} Nc6 {[%emt 0:05:12]} 27. Rxc4 {[%emt 0:00:28]} bxc4 {[%emt 0:03:42]} 28. Qd2 {[%emt 0:05:23]} Rb8 {[%emt 0:01:47]} 29. a4 {[%emt 0:02:02]} Qb3 {[%emt 0:05:05]} 30. Kg2 {[%emt 0:03:23]} c3 {[%emt 0:00:56]} 31. Qf4 {[%emt 0:21:19]} Nb4 {[%emt 0:13:01]} 32. g4 {[%emt 0:00:00]} Nd3 {[%emt 0:01:04]} 33. Qe3 {[%emt 0:00:00]} fxg4 {[%emt 0:03:18]} 34. Qxd3 {[%emt 0:00:00]} gxf3+ {[%emt 0:00:05]} 35. Qxf3 {[%emt 0:00:00]} Qb2 {[%emt 0:00:22]} 36. Rg1 {[%emt 0:00:00]} Rf8 {[%emt 0:04:24]} 37. Qe3 {[%emt 0:00:00]} Rf5 {[%emt 0:00:46]} 38. Rh1 {[%emt 0:03:30]} Rg5+ {[%emt 0:15:21]} 39. Kf3 {[%emt 0:00:00]} c2 {[%emt 0:00:00]} 40. Qd2 {[%emt 0:00:00]} Rxh5 {[%emt 0:00:00]} 0-1

[Event "36th German Seniors-ch-65 2024"]
[Site "Bad Wildungen"]
[Date "2024.08.25"]
[Round "1.7"]
[White "Buchal, Stephan"]
[Black "Gerl, Hans"]
[Result "0-1"]
[ECO "A15"]
[WhiteElo "2215"]
[BlackElo "1907"]
[Annotator "RC"]
[PlyCount "89"]
[EventDate "2024.08.22"]
[EventType "swiss"]
[EventCountry "GER"]
[SourceTitle "playchess.com"]
[Source "ChessBase"]
[SourceQuality "1"]
[TimeControl "40/5400+30:1800+30"]

1. c4 {[%emt 0:00:14]} e5 {[%emt 0:01:04]} 2. g3 {[%emt 0:00:19]} Nf6 {[%emt 0:01:19]} 3. Bg2 {[%emt 0:00:14]} Nc6 {[%emt 0:01:21]} 4. Nf3 {[%emt 0:00:36]} g6 {[%emt 0:02:45]} 5. b3 {[%emt 0:02:44]} Bg7 {[%emt 0:00:21]} 6. Bb2 {[%emt 0:00:15]} d6 {[%emt 0:00:22]} 7. O-O {[%emt 0:01:07]} O-O {[%emt 0:00:31]} 8. Nc3 {[%emt 0:02:29]} Bd7 {[%emt 0:04:27]} 9. d3 {[%emt 0:04:32]} Rb8 {[%emt 0:03:06]} 10. Qd2 {[%emt 0:02:51]} Re8 {[%emt 0:01:18]} 11. Rfe1 {[%emt 0:01:18]} a6 {[%emt 0:01:55]} 12. Rac1 {[%emt 0:03:58]} h6 {[%emt 0:02:55]} 13. a3 {[%emt 0:08:19]} Nd4 {[%emt 0:03:16]} 14. Nxd4 {[%emt 0:06:09]} exd4 {[%emt 0:00:13]} 15. Nd5 {[%emt 0:02:43]} c5 {[%emt 0:04:00]} 16. b4 {[%emt 0:23:00]} b6 {[%emt 0:03:02]} 17. Rb1 {[%emt 0:05:36]} Nxd5 {[%emt 0:03:41]} 18. Bxd5 {[%emt 0:00:50]} Be6 {[%emt 0:00:46]} 19. Bc6 {[%emt 0:03:27]} Bd7 {[%emt 0:00:20]} 20. Bd5 {[%emt 0:00:29]} Be6 {[%emt 0:00:33]} 21. Bc6 {[%emt 0:00:25]} Bd7 {[%emt 0:00:07]} 22. Bg2 {[%emt 0:00:39]} Qc7 {[%emt 0:04:13]} 23. Qf4 {[%emt 0:10:49]} Bc6 {[%emt 0:01:57]} 24. e3 {[%emt 0:03:03]} Bxg2 {[%emt 0:58:58]} 25. Kxg2 {[%emt 0:16:54]} Qc6+ {[%emt 0:00:00]} 26. Qf3 {[%emt 0:00:00]} Qxf3+ {[%emt 0:00:00]} 27. Kxf3 {[%emt 0:00:00]} dxe3 {[%emt 0:00:00]} 28. Rxe3 {[%emt 0:00:00]} Rxe3+ {[%emt 0:00:00]} 29. Kxe3 {[%emt 0:00:00]} f5 {[%emt 0:00:00]} 30. Bxg7 {[%emt 0:00:00]} Kxg7 {[%emt 0:00:00]} 31. d4 {[%emt 0:00:00]} Re8+ {[%emt 0:00:00]} 32. Kd3 {[%emt 0:00:00]} cxd4 {[%emt 0:00:00]} 33. Kxd4 {[%emt 0:01:46]} Re2 {[%emt 0:00:00]} 34. Kd5 {[%emt 0:00:06]} Rc2 {[%emt 0:00:00]} 35. Kc6 {[%emt 0:01:32]} Kf6 {[%emt 0:00:00]} 36. Kxb6 {[%emt 0:00:07]} Rxc4 {[%emt 0:00:00]} 37. Kxa6 {[%emt 0:00:03]} d5 {[%emt 0:00:00]} 38. Kb5 {[%emt 0:02:06]} Ke5 {[%emt 0:00:00]} 39. a4 {[%emt 0:00:06]} Rc2 {[%emt 0:00:00]} 40. a5 {[%emt 0:00:52]} d4 {[%emt 0:00:00]} 41. a6 {[%emt 0:02:58]} Ra2 {[%emt 0:00:00]} 42. Kb6 {[%emt 0:01:10]} d3 {[%emt 0:00:00]} 43. a7 {[%emt 0:04:13]} d2 {[%emt 0:00:00]} 44. Rd1 {[%emt 0:01:31]} Ke4 {[%emt 0:00:00]} 45. Rxd2 {[%emt 0:00:46]} 0-1

[Event "36th German Seniors-ch-65 2024"]
[Site "Bad Wildungen"]
[Date "2024.08.25"]
[Round "1.8"]
[White "Zilch, Lothar"]
[Black "Heinig, Wolfram"]
[Result "1-0"]
[ECO "E90"]
[WhiteElo "1904"]
[BlackElo "2215"]
[Annotator "RC"]
[PlyCount "121"]
[EventDate "2024.08.22"]
[EventType "swiss"]
[EventCountry "GER"]
[SourceTitle "playchess.com"]
[Source "ChessBase"]
[SourceQuality "1"]
[TimeControl "40/5400+30:1800+30"]

1. c4 {[%emt 0:00:08]} Nf6 {[%emt 0:01:03]} 2. Nc3 {[%emt 0:00:14]} g6 {[%emt 0:01:08]} 3. d4 {[%emt 0:00:33]} Bg7 {[%emt 0:00:25]} 4. e4 {[%emt 0:00:50]} d6 {[%emt 0:00:05]} 5. Nf3 {[%emt 0:02:32]} O-O {[%emt 0:00:23]} 6. h3 {[%emt 0:00:21]} e5 {[%emt 0:03:58]} 7. Bg5 {[%emt 0:02:29]} h6 {[%emt 0:07:02]} 8. Be3 {[%emt 0:01:24]} exd4 {[%emt 0:01:21]} 9. Bxd4 {[%emt 0:01:42]} Re8 {[%emt 0:03:14]} 10. Bd3 {[%emt 0:01:37]} Nc6 {[%emt 0:04:19]} 11. Be3 {[%emt 0:00:55]} Ne5 {[%emt 0:03:22]} 12. Nxe5 {[%emt 0:13:20]} dxe5 {[%emt 0:00:19]} 13. O-O {[%emt 0:00:15]} c6 {[%emt 0:03:56]} 14. Qe2 {[%emt 0:06:20]} Nh5 {[%emt 0:06:45]} 15. Bc2 {[%emt 0:12:59]} Nf4 {[%emt 0:08:02]} 16. Qf3 {[%emt 0:00:37]} Ne6 {[%emt 0:10:04]} 17. Qg3 {[%emt 0:06:14]} Nd4 {[%emt 0:04:20]} 18. Bd3 {[%emt 0:08:50]} Be6 {[%emt 0:04:38]} 19. Rfd1 {[%emt 0:02:40]} a5 {[%emt 0:10:38]} 20. Ne2 {[%emt 0:07:39]} a4 {[%emt 0:01:51]} 21. Nxd4 {[%emt 0:05:30]} exd4 {[%emt 0:00:02]} 22. Bd2 {[%emt 0:00:02]} Kh7 {[%emt 0:07:18]} 23. f4 {[%emt 0:03:10]} Qd7 {[%emt 0:00:46]} 24. Rf1 {[%emt 0:00:25]} f5 {[%emt 0:00:14]} 25. e5 {[%emt 0:03:57]} Bf8 {[%emt 0:01:09]} 26. a3 {[%emt 0:06:32]} Be7 {[%emt 0:00:36]} 27. Rfc1 {[%emt 0:00:49]} c5 {[%emt 0:04:11]} 28. Qf3 {[%emt 0:02:38]} Ra6 {[%emt 0:00:29]} 29. Qd1 {[%emt 0:01:00]} Rb6 {[%emt 0:01:11]} 30. Rab1 {[%emt 0:00:19]} Ra8 {[%emt 0:00:35]} 31. Qc2 {[%emt 0:00:56]} Rb3 {[%emt 0:00:59]} 32. Kh2 {[%emt 0:01:02]} Rf8 {[%emt 0:02:18]} 33. Rg1 {[%emt 0:01:01]} Qe8 {[%emt 0:00:57]} 34. Rbf1 {[%emt 0:00:57]} Qf7 {[%emt 0:00:26]} 35. Qb1 {[%emt 0:02:02]} Bxc4 {[%emt 0:01:53]} 36. Rf3 {[%emt 0:01:22]} Bxd3 {[%emt 0:04:21]} 37. Rxd3 {[%emt 0:00:02]} b5 {[%emt 0:00:33]} 38. Rc1 {[%emt 0:02:17]} Qd5 {[%emt 0:01:10]} 39. Re1 {[%emt 0:01:38]} Re8 {[%emt 0:00:56]} 40. Rxb3 {[%emt 0:02:27]} Qxb3 {[%emt 0:02:26]} 41. g4 {[%emt 0:02:48]} Rf8 {[%emt 0:07:40]} 42. Rg1 {[%emt 0:01:06]} d3 {[%emt 0:04:56]} 43. Rg3 {[%emt 0:02:56]} fxg4 {[%emt 0:10:29]} 44. Qxd3 {[%emt 0:03:52]} Qxd3 {[%emt 0:05:09]} 45. Rxd3 {[%emt 0:00:02]} Rd8 {[%emt 0:02:22]} 46. Rxd8 {[%emt 0:01:03]} Bxd8 {[%emt 0:01:03]} 47. hxg4 {[%emt 0:00:30]} Kg7 {[%emt 0:00:11]} 48. Kg3 {[%emt 0:00:43]} Kf7 {[%emt 0:00:21]} 49. Kf3 {[%emt 0:04:07]} Be7 {[%emt 0:01:51]} 50. Ke4 {[%emt 0:04:15]} h5 {[%emt 0:02:05]} 51. gxh5 gxh5 52. f5 b4 53. axb4 cxb4 54. f6 Bf8 55. Kf5 a3 56. bxa3 b3 57. e6+ Kg8 58. Bc1 Bc5 59. Bb2 h4 60. Kg4 Bf2 61. a4 {[%emt 0:06:49]} 1-0